[Event "TUR-ch U13-18 Open 2023"]
[Site "Antalya"]
[Date "2023.01.25"]
[Round "6"]
[White "Akkaya, Atakan"]
[Black "Hasirci, Ozgur Deniz"]
[Result "1-0"]
[ECO "B27"]
[WhiteElo "1506"]
[BlackElo "1773"]
[Annotator "NA RC COMBH"]
[PlyCount "93"]
[EventDate "2023.01.17"]
[EventType "swiss"]
[EventCountry "TUR"]
[SourceTitle "playchess.com"]
[Source "ChessBase"]
[SourceQuality "1"]
[TimeControl "5400+30"]

1. e4 {[%emt 0:01:00]} c5 {[%emt 0:01:00]} 2. Nf3 {[%emt 0:00:30]} g6 {[%emt 0:00:30]} 3. d4 {[%emt 0:00:30]} cxd4 {[%emt 0:00:30]} 4. Qxd4 {[%emt 0:00:30]} Nf6 {[%emt 0:00:30]} 5. Nc3 {[%emt 0:00:00]} Nc6 {[%emt 0:00:00]} 6. Qa4 {[%emt 0:00:00]} d6 {[%emt 0:00:00]} 7. e5 {[%emt 0:00:00]} dxe5 {[%emt 0:00:30]} 8. Nxe5 {[%emt 0:00:00]} Qd4 {[%emt 0:00:00]} 9. Nxc6 {[%emt 0:00:30]} Qxa4 {[%emt 0:00:00]} 10. Nxa4 {[%emt 0:00:30]} bxc6 {[%emt 0:00:00]} 11. Be3 {[%emt 0:04:30]} Bg7 {[%emt 0:03:00]} 12. O-O-O {[%emt 0:03:30]} O-O {[%emt 0:01:30]} 13. Bc4 {[%emt 0:06:30]} Nd5 {[%emt 0:09:30]} 14. Bg5 {[%emt 0:22:30]} Bf5 {[%emt 0:17:30]} 15. Rhe1 {[%emt 0:14:30]} e6 {[%emt 0:04:30]} 16. Bd3 {[%emt 0:01:30]} Rab8 {[%emt 0:08:30]} 17. Bxf5 {[%emt 0:02:30]} gxf5 {[%emt 0:00:30]} 18. c4 {[%emt 0:00:30]} Nf6 {[%emt 0:07:30]} 19. f3 {[%emt 0:04:30]} Rfd8 {[%emt 0:11:30]} 20. b3 {[%emt 0:01:30]} Kf8 {[%emt 0:05:30]} 21. Be3 {[%emt 0:00:30]} a6 {[%emt 0:01:30]} 22. Bf4 {[%emt 0:07:30]} Ra8 {[%emt 0:07:30]} 23. Nb6 {[%emt 0:00:00]} Rxd1+ {[%emt 0:01:50]} 24. Rxd1 {[%emt 0:00:00]} Re8 {[%emt 0:00:30]} 25. Rd6 {[%emt 0:08:30]} Nh5 {[%emt 0:10:34]} 26. Bg5 {[%emt 0:00:30]} h6 {[%emt 0:02:13]} 27. Be3 {[%emt 0:05:00]} e5 {[%emt 0:01:18]} 28. Rxc6 {[%emt 0:03:17]} e4 {[%emt 0:01:43]} 29. Rc8 {[%emt 0:00:31]} Rxc8 {[%emt 0:00:30]} 30. Nxc8 {[%emt 0:00:23]} Be5 {[%emt 0:00:35]} 31. fxe4 {[%emt 0:03:43]} fxe4 {[%emt 0:00:30]} 32. Bxh6+ {[%emt 0:01:37]} Ke8 {[%emt 0:00:00]} 33. g3 {[%emt 0:02:46]} Bc7 {[%emt 0:03:21]} 34. Be3 {[%emt 0:02:41]} Kd7 {[%emt 0:01:11]} 35. Nb6+ {[%emt 0:00:30]} Bxb6 {[%emt 0:00:30]} 36. Bxb6 {[%emt 0:00:30]} Nf6 {[%emt 0:00:00]} 37. Kd2 {[%emt 0:00:00]} Ng4 {[%emt 0:00:00]} 38. h3 {[%emt 0:00:54]} Ne5 {[%emt 0:00:00]} 39. Bd4 {[%emt 0:03:14]} Nc6 {[%emt 0:00:29]} 40. Ke3 {[%emt 0:00:30]} f5 {[%emt 0:00:30]} 41. Bc3 {[%emt 0:00:30]} Ke6 {[%emt 0:00:30]} 42. h4 {[%emt 0:00:30]} Kf7 {[%emt 0:00:30]} 43. h5 {[%emt 0:00:30]} Kg8 {[%emt 0:00:30]} 44. Kf4 {[%emt 0:00:30]} Kh7 {[%emt 0:00:30]} 45. Kxf5 {[%emt 0:00:30]} e3 {[%emt 0:00:30]} 46. Ke4 {[%emt 0:00:30]} e2 {[%emt 0:00:30]} 47. Ke3 {[%emt 0:00:00]} 1-0

[Event "TUR-ch U13-18 Open 2023"]
[Site "Antalya"]
[Date "2023.01.25"]
[Round "6"]
[White "Torun, Kagan"]
[Black "Celik, Ege Yigit"]
[Result "0-1"]
[ECO "B33"]
[WhiteElo "1442"]
[BlackElo "1891"]
[Annotator "NA RC COMBH"]
[PlyCount "102"]
[EventDate "2023.01.17"]
[EventType "swiss"]
[EventCountry "TUR"]
[SourceTitle "playchess.com"]
[Source "ChessBase"]
[SourceQuality "1"]
[TimeControl "5400+30"]

1. e4 {[%emt 0:01:00]} c5 {[%emt 0:01:00]} 2. Nc3 {[%emt 0:00:30]} Nc6 {[%emt 0:00:30]} 3. Nf3 {[%emt 0:00:00]} Nf6 {[%emt 0:00:30]} 4. d4 {[%emt 0:00:00]} cxd4 {[%emt 0:00:30]} 5. Nxd4 {[%emt 0:00:30]} Qb6 {[%emt 0:00:00]} 6. Nb3 {[%emt 0:00:30]} e6 {[%emt 0:00:00]} 7. Be3 {[%emt 0:02:30]} Qc7 {[%emt 0:00:00]} 8. a3 {[%emt 0:00:30]} a6 {[%emt 0:00:00]} 9. f4 {[%emt 0:08:30]} d6 {[%emt 0:00:30]} 10. g4 {[%emt 0:01:30] now supersedes 10.Be2.} Be7 {[%emt 0:04:30] [#]} 11. a4 $146 {[%emt 0:03:30]} ({Predecessor:} 11. g5 Nd7 12. Qd2 b5 13. O-O-O Rb8 14. Kb1 b4 15. axb4 Nxb4 16. Nb5 axb5 17. Qxb4 {0-1 Hernandez Gonzalez,W (2414)-Miranda Mesa,E (2438) Remberto Fernandez Premier2 11th 2018 (9)}) 11... b6 {[%emt 0:07:30]} 12. Bg2 {[%emt 0:05:30]} Bb7 {[%emt 0:04:30]} 13. Qe2 {[%emt 0:03:30]} Rc8 {[%emt 0:09:30]} 14. O-O {[%emt 0:13:30]} Nb4 {[%emt 0:20:30]} (14... h6 $11 {keeps the balance.}) 15. g5 {[%emt 0:06:30]} Nd7 {[%emt 0:00:30]} 16. Qf2 {[%emt 0:04:30]} O-O {[%emt 0:06:30]} 17. Nd4 {[%emt 0:09:30]} Rfe8 {[%emt 0:21:30] [#]} 18. h4 {[%emt 0:12:30]} ({White should play} 18. f5 $1 $16 {[%cal Rf5e6]} e5 19. Nb3) 18... Bf8 {[%emt 0:01:30]} 19. Nf3 {[%emt 0:02:30]} e5 {[%emt 0:00:57]} 20. Bh3 $11 {[%emt 0:02:30]} exf4 {[%emt 0:07:45]} 21. Nd4 {[%emt 0:03:33]} Nc5 {[%emt 0:03:46]} 22. Qxf4 {[%emt 0:01:05]} Rcd8 {[%emt 0:01:07]} 23. Bg2 {[%emt 0:01:56]} g6 {[%emt 0:00:44]} 24. Rf2 {[%emt 0:01:29]} Bg7 {[%emt 0:00:20]} 25. Raf1 {[%emt 0:00:23]} Re7 {[%emt 0:00:00]} 26. Nd5 {[%emt 0:05:30]} Nxd5 {[%emt 0:01:40]} 27. exd5 {[%emt 0:00:30]} Rde8 {[%emt 0:00:30]} 28. Bc1 {[%emt 0:00:30]} Ne4 {[%emt 0:00:30]} 29. Ne6 {[%emt 0:00:30]} fxe6 {[%emt 0:00:30]} 30. Qxe4 {[%emt 0:00:30]} Bxd5 {[%emt 0:00:30]} 31. Qg4 {[%emt 0:00:30]} Bxg2 {[%emt 0:00:30]} 32. Kxg2 {[%emt 0:04:27]} Qc6+ {[%emt 0:00:00]} 33. Kg1 {[%emt 0:00:14]} Qc5 {[%emt 0:00:33]} 34. c3 {[%emt 0:00:20]} d5 {[%emt 0:04:22]} 35. h5 {[%emt 0:02:21]} gxh5 {[%emt 0:02:39]} 36. Qxh5 {[%emt 0:00:09]} d4 {[%emt 0:00:03]} 37. Qg4 {[%emt 0:02:43]} dxc3 {[%emt 0:00:39]} 38. bxc3 {[%emt 0:00:30]} Rf8 {[%emt 0:00:30]} 39. Kg2 {[%emt 0:00:30]} Rxf2+ {[%emt 0:00:30]} 40. Rxf2 {[%emt 0:00:30]} Qxc3 {[%emt 0:00:30]} 41. Qe4 {[%emt 0:00:30]} Qc8 {[%emt 0:00:30]} 42. g6 {[%emt 0:00:30]} hxg6 {[%emt 0:00:30]} 43. Qf4 {[%emt 0:02:45]} Qb7+ {[%emt 0:01:29]} 44. Kh2 {[%emt 0:00:50]} Qc7 {[%emt 0:00:13]} 45. Qxc7 {[%emt 0:00:31]} Rxc7 {[%emt 0:00:30]} 46. Be3 {[%emt 0:00:30]} b5 {[%emt 0:00:30]} 47. a5 {[%emt 0:00:00]} b4 {[%emt 0:00:00]} 48. Bb6 {[%emt 0:00:00]} Rc4 {[%emt 0:00:02]} 49. Rf1 {[%emt 0:00:23]} b3 {[%emt 0:00:00]} 50. Rb1 {[%emt 0:00:30]} b2 {[%emt 0:00:12]} 51. Be3 {[%emt 0:00:30]} Ra4 {[%emt 0:00:00]} 0-1

[Event "TUR-ch U13-18 Open 2023"]
[Site "Antalya"]
[Date "2023.01.25"]
[Round "6"]
[White "Kutdemir, Mehmet"]
[Black "Uysal, Ugur"]
[Result "1-0"]
[ECO "E62"]
[WhiteElo "1369"]
[BlackElo "1760"]
[Annotator "NA RC COMBH"]
[PlyCount "61"]
[EventDate "2023.01.17"]
[EventType "swiss"]
[EventCountry "TUR"]
[SourceTitle "playchess.com"]
[Source "ChessBase"]
[SourceQuality "1"]
[TimeControl "5400+30"]

1. d4 {[%emt 0:01:00]} Nf6 {[%emt 0:01:00]} 2. c4 {[%emt 0:00:30]} g6 {[%emt 0:00:30]} 3. Nf3 {[%emt 0:00:30]} Bg7 {[%emt 0:00:00]} 4. g3 {[%emt 0:00:00]} O-O {[%emt 0:00:00]} 5. Nc3 {[%emt 0:00:00]} d6 {[%emt 0:00:00]} 6. Bg2 {[%emt 0:00:30]} c6 {[%emt 0:00:00]} 7. O-O {[%emt 0:00:30]} Qa5 {[%emt 0:00:00]} 8. Bd2 {[%emt 0:00:30]} Qh5 {[%emt 0:02:00]} 9. Qb3 {[%emt 0:01:30]} e5 {[%emt 0:07:30]} 10. dxe5 {[%emt 0:01:30]} dxe5 {[%emt 0:00:00]} 11. Ng5 {[%emt 0:01:30]} h6 {[%emt 0:28:00]} 12. Nge4 {[%emt 0:04:30]} Nbd7 {[%emt 0:13:30]} 13. Rfd1 {[%emt 0:11:30]} Nb6 {[%emt 0:10:30]} 14. Nxf6+ {[%emt 0:02:30]} Bxf6 {[%emt 0:00:30]} 15. Ne4 {[%emt 0:00:30]} Be7 {[%emt 0:01:30]} 16. Bb4 {[%emt 0:08:30]} Bf5 {[%emt 0:20:39]} 17. Bxe7 {[%emt 0:00:30]} Bxe4 {[%emt 0:00:31]} 18. Bxe4 {[%emt 0:00:30]} Rfe8 {[%emt 0:00:02]} 19. Bf3 {[%emt 0:01:30]} Qf5 {[%emt 0:00:08]} 20. c5 {[%emt 0:02:30]} Nd5 {[%emt 0:01:33]} 21. Bxd5 {[%emt 0:00:30]} cxd5 {[%emt 0:00:00]} 22. Bd6 {[%emt 0:00:00]} b6 {[%emt 0:00:30]} 23. c6 {[%emt 0:02:00]} d4 {[%emt 0:00:15]} 24. Rac1 {[%emt 0:00:30]} h5 {[%emt 0:00:11]} 25. Qf3 {[%emt 0:00:30]} Qe6 {[%emt 0:00:30]} 26. Ba3 {[%emt 0:00:30]} e4 {[%emt 0:00:00]} 27. Qf4 {[%emt 0:00:30]} e3 {[%emt 0:00:00]} 28. Qxd4 {[%emt 0:00:30]} exf2+ {[%emt 0:00:21]} 29. Qxf2 {[%emt 0:00:30]} h4 {[%emt 0:00:00]} 30. c7 {[%emt 0:00:30]} Qg4 {[%emt 0:02:31]} 31. Qf3 {[%emt 0:00:30]} 1-0

[Event "TUR-ch U13-18 Open 2023"]
[Site "Antalya"]
[Date "2023.01.25"]
[Round "6"]
[White "Kececi, Kaan"]
[Black "Alpaslan, Utku"]
[Result "0-1"]
[ECO "E11"]
[WhiteElo "1254"]
[BlackElo "1765"]
[Annotator "NA RC COMBH"]
[PlyCount "120"]
[EventDate "2023.01.17"]
[EventType "swiss"]
[EventCountry "TUR"]
[SourceTitle "playchess.com"]
[Source "ChessBase"]
[SourceQuality "1"]
[TimeControl "5400+30"]

1. d4 {[%emt 0:01:00]} Nf6 {[%emt 0:01:00]} 2. c4 {[%emt 0:00:30]} e6 {[%emt 0:00:30]} 3. Nf3 {[%emt 0:00:30]} Bb4+ {[%emt 0:00:30]} 4. Bd2 {[%emt 0:00:30]} Qe7 {[%emt 0:00:30]} 5. g3 {[%emt 0:00:30]} Bxd2+ {[%emt 0:00:00]} 6. Nbxd2 {[%emt 0:00:00]} d6 {[%emt 0:00:00]} 7. Bg2 {[%emt 0:00:00]} O-O {[%emt 0:00:00]} 8. O-O {[%emt 0:00:00]} e5 {[%emt 0:01:00]} 9. e4 {[%emt 0:02:00]} a5 {[%emt 0:05:30]} 10. d5 {[%emt 0:02:30]} Nbd7 {[%emt 0:00:30]} 11. Ne1 {[%emt 0:00:30]} Nc5 {[%emt 0:00:30]} 12. b3 {[%emt 0:00:30]} Bg4 {[%emt 0:06:30]} 13. f3 {[%emt 0:01:30]} Bd7 {[%emt 0:00:00]} 14. a3 {[%emt 0:02:30]} b5 {[%emt 0:08:00]} 15. Qe2 {[%emt 0:12:30]} bxc4 {[%emt 0:09:30]} 16. bxc4 {[%emt 0:02:30]} Ba4 {[%emt 0:00:30]} 17. Nd3 {[%emt 0:03:30]} Nxd3 {[%emt 0:02:30]} 18. Qxd3 {[%emt 0:02:30]} Nd7 {[%emt 0:00:30]} 19. f4 {[%emt 0:03:30]} Nc5 {[%emt 0:01:30]} 20. Qf3 {[%emt 0:00:30]} exf4 {[%emt 0:13:30]} 21. gxf4 {[%emt 0:04:30]} f5 {[%emt 0:12:30]} 22. Qc3 {[%emt 0:05:30]} fxe4 {[%emt 0:03:30]} 23. Rae1 {[%emt 0:00:30]} Qf6 {[%emt 0:06:30]} 24. Qxf6 {[%emt 0:04:30]} Rxf6 {[%emt 0:00:30]} 25. Nxe4 {[%emt 0:00:30]} Nxe4 {[%emt 0:00:30]} 26. Bxe4 {[%emt 0:00:30]} Raf8 {[%emt 0:03:30]} 27. f5 {[%emt 0:00:30]} Rb8 {[%emt 0:11:32]} 28. Rb1 {[%emt 0:02:30]} Rb3 {[%emt 0:03:38]} 29. Rxb3 {[%emt 0:00:30]} Bxb3 {[%emt 0:00:30]} 30. Bd3 {[%emt 0:00:00]} Rh6 {[%emt 0:01:03]} 31. Rf4 {[%emt 0:03:00]} Rh3 {[%emt 0:00:51]} 32. Rd4 {[%emt 0:00:30]} Kf7 {[%emt 0:01:30]} 33. Kg2 {[%emt 0:01:30]} Re3 {[%emt 0:00:30]} 34. Kf2 {[%emt 0:00:00]} Re8 {[%emt 0:00:49]} 35. Rh4 {[%emt 0:02:00]} h6 {[%emt 0:00:48]} 36. Rg4 {[%emt 0:00:30]} Rb8 {[%emt 0:01:18]} 37. Ke3 {[%emt 0:01:30]} Bd1 {[%emt 0:04:48]} 38. Rg1 {[%emt 0:00:30]} Bh5 {[%emt 0:00:16]} 39. Rb1 {[%emt 0:01:30]} Rxb1 {[%emt 0:02:02]} 40. Bxb1 {[%emt 0:00:30]} Kf6 {[%emt 0:00:05]} 41. h3 {[%emt 0:00:30]} Ke5 {[%emt 0:00:18]} 42. Kd3 {[%emt 0:02:30]} Kxf5 {[%emt 0:00:52]} 43. Kd4+ {[%emt 0:00:30]} Kf4 {[%emt 0:00:35]} 44. c5 {[%emt 0:00:00]} Be2 {[%emt 0:00:31]} 45. Bg6 {[%emt 0:02:00]} Bf1 {[%emt 0:00:51]} 46. h4 {[%emt 0:00:30]} Be2 {[%emt 0:00:16]} 47. cxd6 {[%emt 0:00:30]} cxd6 {[%emt 0:00:04]} 48. Kc3 {[%emt 0:00:30]} Ke5 {[%emt 0:00:38]} 49. Kb3 {[%emt 0:01:30]} Bb5 {[%emt 0:00:26]} 50. Bf7 {[%emt 0:00:30]} g5 {[%emt 0:00:43]} 51. hxg5 {[%emt 0:00:30]} hxg5 {[%emt 0:00:30]} 52. Be6 {[%emt 0:00:30]} Kf4 {[%emt 0:00:00]} 53. Kc3 {[%emt 0:00:30]} g4 {[%emt 0:00:03]} 54. Kd4 {[%emt 0:00:30]} Bf1 {[%emt 0:00:27]} 55. Bxg4 {[%emt 0:00:30]} Kxg4 {[%emt 0:00:06]} 56. Ke4 {[%emt 0:00:00]} Kg5 {[%emt 0:00:30]} 57. Ke3 {[%emt 0:00:00]} Kf5 {[%emt 0:00:00]} 58. Kd4 {[%emt 0:00:30]} Kf4 {[%emt 0:00:30]} 59. Kc3 {[%emt 0:00:30]} Ke4 {[%emt 0:00:30]} 60. Kb3 {[%emt 0:00:30]} Bb5 {[%emt 0:00:30]} 0-1

[Event "TUR-ch U13-18 Open 2023"]
[Site "Antalya"]
[Date "2023.01.25"]
[Round "7"]
[White "Taspinar, Yanki"]
[Black "Tarhan, Adar"]
[Result "1/2-1/2"]
[ECO "C28"]
[WhiteElo "2275"]
[BlackElo "2321"]
[Annotator "TA"]
[PlyCount "41"]
[EventDate "2023.01.17"]
[EventType "swiss"]
[EventCountry "TUR"]
[SourceTitle "playchess.com"]
[Source "ChessBase"]
[SourceQuality "1"]
[TimeControl "5400+30"]

{[%evp 15,41,0,0,0,0,0,0,0,44,44,132,114,413,413,394,-16,-16,-18,-14,-25,-19,-21,-19,-25,-16,-39,-27,-44]} 1. e4 {[%emt 0:05:00]} e5 {[%emt 0:01:00]} 2. Nc3 {[%emt 0:00:30]} Nc6 {[%emt 0:00:30]} 3. Bc4 {[%emt 0:00:00]} Nf6 {[%emt 0:01:30]} 4. d3 {[%emt 0:00:00]} Bb4 {[%emt 0:05:30]} 5. Nge2 {[%emt 0:00:30]} d5 {[%emt 0:00:30]} 6. exd5 {[%emt 0:00:30]} Nxd5 {[%emt 0:00:30]} 7. O-O {[%emt 0:00:00]} Be6 {[%emt 0:02:30]} 8. Bxd5 {[%emt 0:00:00]} Bxd5 {[%emt 0:00:30]} 9. f4 {[%emt 0:00:00] C28: Vienna Game: 2...Nf6 3 Bc4 Nc6.} O-O {[%emt 0:01:30] 9...f6 deserves study.} 10. Nxd5 {[%emt 0:00:00]} Qxd5 {[%emt 0:00:30]} 11. f5 {[%emt 0:00:00] [#] The position is equal.} Nd4 $146 {[%emt 0:18:30]} ({Predecessor:} 11... f6 12. Ng3 Rf7 13. Ne4 Bf8 14. Be3 Nd4 15. c3 Nc6 16. Qe2 Rd8 17. Rad1 Qxa2 {1-0 Petrov,N (2553)-Dragomarezkij,E (2297) RUS-ch Rapid 2022 (7)}) 12. Ng3 {[%emt 0:33:00] Strongly threatening c3.} Qc5 {[%emt 0:00:00]} (12... Bc5 $14 13. Kh1 f6) 13. Rf2 {[%emt 0:00:30] Threatens to win with c3.} Be1 {[%emt 0:00:00][%mdl 8192]} 14. Qxe1 $18 {[%emt 0:00:30]} Nxc2 {[%emt 0:00:00]} 15. Qc3 {[%emt 0:02:30]} ({Not} 15. Ne4 Qb6 16. Qe2 Nxa1 $18) ({Better is} 15. Qd2 $18 Nxa1 16. f6) 15... Qxc3 $11 {[%emt 0:00:00]} 16. bxc3 {[%emt 0:00:30]} Nxa1 {[%emt 0:00:30]} 17. Bb2 {[%emt 0:00:30] [#]} Rfd8 $1 {[%emt 0:00:00][%cal Od8d3] ...Rxd3! is the strong threat.} 18. Rd2 {[%emt 0:00:00] [#]} Nc2 $1 {[%emt 0:00:00][%mdl 64] Hoping for ...Ne3. Deflection} 19. Kf2 {[%emt 0:03:00][%cal Og3e4] [#] Wards off Ne3} Rd7 $1 {[%emt 0:22:30][%cal Of7f6]} 20. Rxc2 {[%emt 0:22:30]} (20. Ke2 Rad8) 20... Rxd3 {[%emt 0:00:00]} 21. Bc1 {[%emt 0:00:30] An interesting game.   Weighted Error Value: White=0.54/Black=0.65} 1/2-1/2

[Event "TUR-ch U13-18 Open 2023"]
[Site "Antalya"]
[Date "2023.01.25"]
[Round "7"]
[White "Demirtas, Alper"]
[Black "Deveci, Huseyin Said"]
[Result "1-0"]
[ECO "E05"]
[WhiteElo "1990"]
[BlackElo "1987"]
[Annotator "TA"]
[PlyCount "115"]
[EventDate "2023.01.17"]
[EventType "swiss"]
[EventCountry "TUR"]
[SourceTitle "playchess.com"]
[Source "ChessBase"]
[SourceQuality "1"]
[TimeControl "5400+30"]

{[%evp 24,115,17,25,20,15,16,0,13,18,13,25,21,21,53,20,119,108,127,126,134,138,200,154,177,174,216,195,202,171,143,154,154,151,148,126,130,130,120,123,131,131,133,137,134,128,149,137,139,116,115,99,116,117,163,144,141,147,147,145,258,256,243,242,238,235,264,267,257,262,277,249,383,351,563,556,559,523,533,514,552,531,733,725,1443,1424,1295,1368,1406,1420,12839,12839,12839,12839]} 1. c4 {[%emt 0:01:00]} Nf6 {[%emt 0:01:00]} 2. Nf3 {[%emt 0:00:00]} e6 {[%emt 0:00:30]} 3. g3 {[%emt 0:00:00]} d5 {[%emt 0:00:30]} 4. d4 {[%emt 0:00:30]} Be7 {[%emt 0:00:30]} 5. Bg2 {[%emt 0:00:30]} O-O {[%emt 0:00:30]} 6. O-O {[%emt 0:00:00]} dxc4 {[%emt 0:00:30]} 7. Ne5 {[%emt 0:00:00]} Nc6 {[%emt 0:01:30]} 8. Bxc6 {[%emt 0:00:00]} bxc6 {[%emt 0:00:00]} 9. Nxc6 {[%emt 0:00:00]} Qe8 {[%emt 0:00:00]} 10. Nxe7+ {[%emt 0:00:30]} Qxe7 {[%emt 0:00:30]} 11. Qa4 {[%emt 0:00:00]} e5 {[%emt 0:03:30]} 12. dxe5 {[%emt 0:00:00]} Qxe5 {[%emt 0:00:00]} 13. Qxc4 {[%emt 0:01:30]} Be6 {[%emt 0:00:00] E05: Open Catalan: 5 Nf3 Be7.} 14. Qc2 {[%emt 0:03:30] 14.Qc2 scores better than 14.Qd3.} Bf5 {[%emt 0:00:30]} 15. Qc4 {[%emt 0:00:30]} Be6 {[%emt 0:00:00] The position is equal.} 16. Qd3 {[%emt 0:08:30]} Rad8 {[%emt 0:17:00]} 17. Qe3 {[%emt 0:01:30]} Qh5 {[%emt 0:02:30]} 18. f3 {[%emt 0:01:30] Dodges Ng4} Rfe8 {[%emt 0:07:30]} 19. Qf2 {[%emt 0:14:30]} g5 {[%emt 0:07:30]} (19... Bc4 $11 20. Nc3 Nd5) 20. Nc3 $16 {[%emt 0:05:30]} (20. Qxa7 Bc4 21. Qc5 Bxe2 22. Qxg5+ Qxg5 23. Bxg5 Bxf1 $17) 20... Bh3 {[%emt 0:18:30]} 21. Re1 {[%emt 0:02:30] [#]} Qg6 $146 {[%emt 0:07:30]} ({Predecessor:} 21... g4 22. Be3 a6 23. Rad1 Nd5 24. Bd4 c5 25. fxg4 Qg5 26. e4 Nxc3 27. Bxc3 Rxd1 28. Rxd1 Rd8 29. Rxd8+ Qxd8 30. Qe2 Qg5 31. Kf2 Qxg4 32. Qd2 h5 33. Qd8+ {1-0 Wojtkiewicz,A (2420)-Kalinin,O (2315) Rzeszow 19th 1988 (11)}) 22. Be3 {[%emt 0:06:30][%cal Bc1e3,Be3d4,Bd4c3][%mdl 32]} g4 {[%emt 0:03:30]} (22... Nd5 $16 23. Nxd5 (23. Bxa7 Nxc3 24. bxc3 Rd2 $16) 23... Rxd5 24. Bxa7 Rd2) 23. Rad1 {[%emt 0:09:30]} Rxd1 {[%emt 0:02:30]} 24. Rxd1 {[%emt 0:01:30]} ({Don't do} 24. Nxd1 Nd7 $16) 24... Qc2 {[%emt 0:00:30]} 25. Bd4 {[%emt 0:03:30]} Nd5 {[%emt 0:04:30]} 26. e4 {[%emt 0:00:30]} (26. Bxa7 Nxc3 27. Re1 Nxe2+ 28. Kh1 Nxg3+ 29. Qxg3 Rxe1+ 30. Bg1 Qe2 31. b4 Rxg1+ 32. Qxg1 Qxf3+) 26... Qxf2+ {[%emt 0:00:30]} 27. Kxf2 {[%emt 0:00:30]} Nxc3 {[%emt 0:00:00]} 28. Bxc3 {[%emt 0:00:00]} gxf3 {[%emt 0:00:00]} 29. Kxf3 $18 {[%emt 0:00:00][%mdl 4096] Endgame KRB-KRB} f5 {[%emt 0:03:30]} 30. exf5 {[%emt 0:00:30]} Bxf5 {[%emt 0:00:56]} 31. g4 {[%emt 0:01:30]} Be6 {[%emt 0:03:10]} 32. a3 {[%emt 0:00:30]} Kf7 {[%emt 0:02:04]} 33. Rd4 {[%emt 0:04:30]} a6 {[%emt 0:00:38]} 34. h4 {[%emt 0:01:30]} Rg8 {[%emt 0:05:53]} 35. Ra4 {[%emt 0:01:30]} Rg6 {[%emt 0:04:27]} 36. g5 {[%emt 0:01:30]} (36. Rxa6 $2 {perishes.} Bd5+ 37. Kg3 Rxa6 $19) 36... Bd5+ {[%emt 0:00:16]} 37. Kf4 {[%emt 0:01:30] Black must now prevent Bf6.} Re6 {[%emt 0:00:16]} 38. Rd4 {[%emt 0:00:30]} c6 {[%emt 0:01:39]} (38... Bb3 $16 39. Bb4 (39. Rd7+ Re7 $16) 39... Ke8) 39. Kf5 {[%emt 0:02:30]} Re2 {[%emt 0:01:39] [#]} 40. Ra4 $1 {[%emt 0:01:30]} Be6+ {[%emt 0:02:51]} 41. Kf4 {[%emt 0:00:30]} Kg6 {[%emt 0:00:50]} (41... Bc8 $16 42. Rb4 Rh2) 42. Rxa6 {[%emt 0:00:30]} Bd5 {[%emt 0:01:00]} 43. Ra7 {[%emt 0:02:30] Hoping for Rg7+.} Re4+ {[%emt 0:00:22]} 44. Kg3 {[%emt 0:00:30]} Re2 {[%emt 0:00:30]} 45. Rg7+ {[%emt 0:00:30][%mdl 64] Deflection} Kf5 {[%emt 0:00:30]} 46. Rxh7 {[%emt 0:00:30]} Rg2+ {[%emt 0:00:30]} 47. Kh3 {[%emt 0:00:00]} Rg1 {[%emt 0:00:54]} (47... Rf2 $142 48. Rh6 Rf3+ 49. Kh2 Kg4) 48. Rh8 {[%emt 0:00:00]} Kf4 $2 {[%emt 0:00:55]} (48... Rh1+ 49. Kg3 Rg1+ 50. Kf2 Rg4) 49. Rf8+ {[%emt 0:00:30] White is clearly winning.} Ke3 {[%emt 0:00:00]} 50. a4 {[%emt 0:02:30]} c5 {[%emt 0:00:08] [#]} 51. Bd2+ $1 {[%emt 0:03:30][%mdl 512]} Ke2 {[%emt 0:00:56]} (51... Kd3 52. Rd8) 52. Bf4 {[%emt 0:01:30]} Bf3 {[%emt 0:00:28]} 53. Re8+ {[%emt 0:00:30]} Kf1 {[%emt 0:00:06]} 54. Bg3 {[%emt 0:02:30][%csl Gg3][%cal Re8e1]} Rh1+ {[%emt 0:00:30]} 55. Bh2 {[%emt 0:00:30]} Kf2 {[%emt 0:00:30]} 56. Rf8 {[%emt 0:00:30] Strongly threatening g6.} Ra1 {[%emt 0:00:30]} 57. g6 {[%emt 0:00:30][%cal Bg5g6,Bg6g7][%mdl 32] Threatening mate with g7.} Rxa4 {[%emt 0:00:30]} 58. g7 {[%emt 0:00:30] Weighted Error Value: White=0.08 (flawless) /Black=0.28 (precise)} 1-0